Cogmind - Beta 12 X1 @@@ ROGUE MODE // 2022.07.20 @ 14:20:34 Player: Plexion Result: Destroyed by YB-PVS(d) with Rocket Launcher Performance ------------- Evolutions (3) 1500 Regions Visited (11) 2200 Robots Destroyed (74) 370 Value Destroyed (3310) 3310 Prototype IDs (27) 540 Alien Tech Used (0) 0 Bonus (2143) 2143 TOTAL SCORE: 10063 Bonus ------- High Alert Combat Kills 321 Follower Combat Kills 197 Entered Garrisons 400 Used RIF Installer 1000 Aligned with FarCom 300 Friendly Fire -75 Cogmind --------- Core Integrity 0/700 Matter 300/300 Energy 78/100 System Corruption 6% Temperature Cool (0) Movement Core (50) Location -6/Zion Parts ------- > --- POWER (1) -------- (None) > --- PROPULSION (4) --- (None) > --- UTILITY (5) ------ Advanced Heat Sink > --- WEAPON (3) ------- (None) > --- INVENTORY (5) ---- Relay Coupler [Sentry] (21) Relay Coupler [Behemoth] (13) Dirty Bomb Trap Dirty Bomb Trap Dirty Bomb Trap Peak State ------------ > --- POWER ------------ Light Quantum Reactor > --- PROPULSION ------- Improved Heavy Treads Armored Huge Wheel > --- UTILITY ---------- Coolant Injector High-capacity Storage Unit Advanced Targeting Computer Improved Light Armor Plating Relay Coupler [Heavy] > --- WEAPON ----------- Improved Spread Laser Improved Spread Laser Remote Datajack > --- INVENTORY -------- Micro Nuclear Core Improved Heavy Treads Advanced Heat Sink Superbattery Improved Light Armor Plating Improved Light Armor Plating Relay Coupler [NC] Relay Coupler [NC] Relay Coupler [Sentry] Relay Coupler [Sentry] Relay Coupler [Sentry] Relay Coupler [Hunter] Relay Coupler [Behemoth] Particle Cannon Rocket Launcher Remote Datajack Katana [Rating: 69] Favorites ----------- Power Ion Engine Engine Ion Engine Power Core Micro Nuclear Core Reactor Light Quantum Reactor Propulsion Light Treads Treads Light Treads Wheel Armored Huge Wheel Utility High-capacity Storage Unit Device Improved Heat Sink Storage High-capacity Storage Unit Processor Advanced Targeting Computer Hackware Relay Coupler [Grunt] Protection Improved Light Armor Plating Weapon Light Assault Rifle Energy Gun Improved Spread Laser Energy Cannon Particle Cannon Ballistic Gun Light Assault Rifle Launcher Rocket Launcher Special Weapon Remote Datajack Slashing Weapon Katana Piercing Weapon CR-A16's Pointy Stick Build | -11 -10 -10 -10 -9 -8 -8 -8 -8 -7 -7 -6 ------- Run | Scr Mat Min Exi Min Mat Gar Mat Gar Fac Low Zio Slots Evolved 6 | . . . . . 4 . . . 2 . . Power . | . . . . . . . . . . . . Propulsion 2 | . . . . . 1 . . . 1 . . Utility 3 | . . . . . 2 . . . 1 . . Weapon 1 | . . . . . 1 . . . . . . Parts Attached 73 | 6 1 1 . . 13 17 . 9 10 7 9 Power 5 | 1 . . . . 1 2 . . 1 . . Engine 1 | 1 . . . . . . . . . . . Core 3 | . . . . . 1 1 . . 1 . . Reactor 1 | . . . . . . 1 . . . . . Propulsion 9 | 2 . . . . 2 3 . . 1 . 1 Treads 7 | 2 . . . . 1 2 . . 1 . 1 Leg . | . . . . . . . . . . . . Wheel 2 | . . . . . 1 1 . . . . . Hover . | . . . . . . . . . . . . Flight . | . . . . . . . . . . . . Utility 17 | 1 1 1 . . 3 3 . 1 3 4 . Device 8 | . . 1 . . 1 3 . . . 3 . Storage 2 | 1 1 . . . . . . . . . . Processor 2 | . . . . . 1 . . 1 . . . Hackware 2 | . . . . . . . . . 2 . . Protection 3 | . . . . . 1 . . . 1 1 . Artifact . | . . . . . . . . . . . . Weapon 42 | 2 . . . . 7 9 . 8 5 3 8 Energy Gun 14 | . . . . . 3 1 . 5 1 1 3 Energy Cannon 3 | . . . . . 2 . . . . . 1 Ballistic Gun 3 | 2 . . . . . 1 . . . . . Ballistic Cannon . | . . . . . . . . . . . . Launcher 6 | . . . . . 2 2 . 1 . 1 . Special Weapon 8 | . . . . . . 2 . 1 3 1 1 Impact Weapon . | . . . . . . . . . . . . Slashing Weapon 7 | . . . . . . 3 . 1 1 . 2 Piercing Weapon 1 | . . . . . . . . . . . 1 Special Melee Weapon . | . . . . . . . . . . . . Unidentified Prototypes 2 | . . . . . 2 . . . . . . Parts Lost 21 | . . . . . . 4 . 1 3 . 13 Power 2 | . . . . . . . . . 1 . 1 Propulsion 5 | . . . . . . 2 . . . . 3 Utility 6 | . . . . . . . . 1 . . 5 Weapon 8 | . . . . . . 2 . . 2 . 4 Highest Loss Streak 13 | . . . . . . 2 . 1 1 . 13 To Critical Strikes 1 | . . . . . . . . . . . 1 Average Slot Usage (%) 87 | . 85 94 100 100 69 89 90 85 78 83 68 Engine 5 | . 14 14 14 14 7 . . . . . . Core 2 | . . . . . 1 3 . . 1 7 5 Reactor 2 | . . . . . . 5 9 9 5 . . Treads 15 | . 28 28 28 28 13 8 9 9 7 7 6 Wheel 4 | . . . . . 4 9 9 9 7 7 5 Device 12 | . . 8 14 14 9 17 18 18 13 6 7 Storage 10 | . 14 14 14 14 9 9 9 9 7 7 6 Processor 1 | . . . . . . . . 1 7 7 6 Protection 5 | . . . . . 2 9 9 4 1 15 11 Energy Gun 8 | . . . . . . 17 18 19 14 15 1 Ballistic Gun 12 | . 28 28 28 28 18 2 . . . . . Special Weapon 1 | . . . . . . 1 . . 2 5 3 Slashing Weapon 2 | . . . . . . 5 9 4 4 1 4 Naked Turns . | . . . . . . . . . . . . Heaviest Build 74 | 12 52 48 48 48 59 74 72 74 71 65 64 Greatest Support 75 | 40 40 40 40 40 40 28 28 28 28 75 75 Greatest Overweight (x) 14 | . 1 1 1 1 2 3 2 2 2 2 14 Average Overweight (x) 1 | . . 1 1 1 1 2 2 2 2 1 1 Largest Inventory Capacity 20 | 8 20 20 20 20 20 20 20 20 20 20 20 Average Capacity 19 | 6 17 20 20 20 20 20 20 20 20 20 19 Most Carried 20 | 2 2 2 4 4 16 20 20 20 20 20 20 Average Carried 11 | . 2 2 2 3 10 18 20 19 17 15 18 Final Capacity 20 | 8 20 20 20 20 20 20 20 20 20 20 5 Final Carried 20 | 2 2 2 3 4 14 20 20 20 16 20 5 Class Distribution -------------------- 53% | Mutant 33% | Bothacker-Mutant 6% | Skirmisher 4% | Scavenger-Mutant Dominant Class ---------------- Mutant | -10/Materials Mutant | -10/Mines Mutant | -10/Exiles Mutant | -9/Mines Mutant | -8/Materials Mutant | -8/Garrison Bothacker-Mutant | -8/Materials Bothacker-Mutant | -8/Garrison Bothacker-Mutant | -7/Factory Bothacker-Mutant | -7/Lower Caves Bothacker-Mutant | -6/Zion Resources | -11 -10 -10 -10 -9 -8 -8 -8 -8 -7 -7 -6 ----------- Run | Scr Mat Min Exi Min Mat Gar Mat Gar Fac Low Zio Matter Collected 1388 | 216 70 56 . . 54 528 . 125 62 222 55 Remotely . | . . . . . . . . . . . . Salvage Created 2748 | . 97 229 . . 54 1514 . 134 282 337 101 Parts 131 | . 15 18 . . 1 58 . 13 9 13 4 Haulers Intercepted . | . . . . . . . . . . . . Recyclers Shooed . | . . . . . . . . . . . . Parts Field Recycled . | . . . . . . . . . . . . Retrieved Matter . | . . . . . . . . . . . . Parts Self-Destructed 20 | . . . . . . . . . . 20 . Prevented . | . . . . . . . . . . . . Kills | -11 -10 -10 -10 -9 -8 -8 -8 -8 -7 -7 -6 ------- Run | Scr Mat Min Exi Min Mat Gar Mat Gar Fac Low Zio Combat Hostiles Destroyed 71 | . 6 7 . . 1 31 . 7 7 11 1 Melee 1 | . . . . . . . . . . . 1 Guns 57 | . 6 7 . . 1 26 . 4 7 6 . AOE 13 | . . . . . . 5 . 3 . 5 . Classes Destroyed 12 | . 1 1 . . 1 5 . . 1 1 2 Worker 1 | . . . . . . . . . 1 . . Minesweeper 1 | . . . . . . . . . . 1 . Swarmer 17 | . 6 3 . . . 3 . 4 . 1 . Grunt 28 | . . 4 . . . 14 . 1 5 4 . Brawler 4 | . . . . . . 1 . . . 3 . Duelist 5 | . . . . . . 3 . . . 2 . Sentry 5 | . . . . . 1 3 . . . 1 . Specialist 4 | . . . . . . 2 . 2 . . . Hunter 1 | . . . . . . 1 . . . . . Programmer 6 | . . . . . . 4 . . 2 . . Zionite 1 | . . . . . . . . . . . 1 Marauder 1 | . . . . . . . . . . . 1 Best Kill Streak 9 | . 3 3 . . 1 9 . 5 4 7 1 Combat Bots Only 9 | . 3 3 . . 1 9 . 5 4 7 1 Max Kills in Single Turn 3 | . 1 1 . . 1 2 . 3 1 2 1 Gunslinging . | . . . . . . . . . . . . Exploded 3 | . . . . . . 2 . 3 . 2 . Melee 1 | . . . . . . . . . . . 1 Uniques/NPCs Destroyed . | . . . . . . . . . . . . Combat | -11 -10 -10 -10 -9 -8 -8 -8 -8 -7 -7 -6 -------- Run | Scr Mat Min Exi Min Mat Gar Mat Gar Fac Low Zio Damage Taken 5154 | . 138 180 . 33 226 1108 . 209 322 501 2437 Core 971 | . 24 22 . 7 63 138 . 8 30 25 654 Absorbed by Shields 22 | . . . . . . 22 . . . . . Regen/Repaired (Parts) 203 | . . . . . . . . . . . 203 Core Remaining (%) 80 | 100 . . . 78 . . . 62 . . . Volleys Fired 173 | . 8 23 . . 14 67 . 12 21 26 2 Largest 3 | . 2 2 . . 2 3 . 3 2 2 2 Hottest 225 | . 40 40 . . 40 170 . 225 150 150 143 Shots Fired 318 | . 16 46 . . 26 130 . 18 37 42 3 Gun 281 | . 16 46 . . 24 113 . 16 33 32 1 Cannon 2 | . . . . . . . . . . . 2 Launcher 20 | . . . . . 2 8 . 2 . 8 . Special 15 | . . . . . . 9 . . 4 2 . Kinetic 106 | . 16 46 . . 24 20 . . . . . Thermal 177 | . . . . . . 93 . 16 33 32 3 Explosive 20 | . . . . . 2 8 . 2 . 8 . Electromagnetic . | . . . . . . . . . . . . Robot Hit Streak 17 | . 5 5 . . 9 14 . 10 11 17 6 Robot Miss Streak 7 | . 1 2 . . 2 6 . 5 7 5 1 Penetration Max . | . . . . . . . . . . . . Secondary Targets 6 | . 2 . . . . 4 . . . . . Max Gunslinging Chain 1 | . 1 . . . . 1 . . . . . Shots Hit Robots 282 | . 11 30 . . 16 119 . 15 33 34 24 Core Hits 279 | . 7 14 . . 4 137 . 24 38 48 7 Critical Kills . | . . . . . . . . . . . . Critical Parts Destroyed . | . . . . . . . . . . . . Critical Strikes 2 | . . . . . . . . . . . 2 Impale 2 | . . . . . . . . . . . 2 Melee Attacks 66 | . . . . . . 28 2 3 2 . 31 Impact . | . . . . . . . . . . . . Slashing 38 | . . . . . . 28 2 3 2 . 3 Piercing 28 | . . . . . . . . . . . 28 Sneak Attacks . | . . . . . . . . . . . . Combat Hostiles . | . . . . . . . . . . . . Follow-up Attacks 2 | . . . . . . . . . . . 2 Damage Inflicted 7386 | . 103 246 . . 138 3661 . 493 678 1313 754 Guns 4037 | . 103 246 . . 138 1935 . 279 678 640 18 Cannons 36 | . . . . . . . . . . . 36 Explosions 1589 | . . . . . . 702 . 214 . 673 . Melee 1718 | . . . . . . 1024 . . . . 694 Ramming 6 | . . . . . . . . . . . 6 Kinetic 594 | . 103 246 . . 138 107 . . . . . Thermal 3479 | . . . . . . 1828 . 279 678 640 54 Explosive 1589 | . . . . . . 702 . 214 . 673 . Electromagnetic . | . . . . . . . . . . . . Impact . | . . . . . . . . . . . . Slashing 1089 | . . . . . . 1024 . . . . 65 Piercing 629 | . . . . . . . . . . . 629 Highest Corruption 6 | . . . . . 2 4 4 4 2 2 6 Average Corruption 2 | . . . . . 2 3 4 4 2 2 2 Corruption Purged . | . . . . . . . . . . . . Corruption Blocked . | . . . . . . . . . . . . Effects 65 | . . . . . 8 40 1 5 1 6 4 Message Errors 17 | . . . . . 2 9 . 2 1 2 1 Matter Fused 14 | . . . . . 2 11 . . . 1 . Heat Flow Errors 13 | . . . . . 2 8 . . . 2 1 Energy Discharges 6 | . . . . . . 4 . 1 . . 1 Data Loss (minor) 4 | . . . . . 2 1 . . . . 1 Data Loss (major) 3 | . . . . . . 1 1 . . 1 . Misfires 5 | . . . . . . 4 . 1 . . . Weapon Failures 3 | . . . . . . 2 . 1 . . . Overload Shots . | . . . . . . . . . . . . Overflow Damage 67 | . . . . . . 43 . 22 . . 2 Projectiles . | . . . . . . . . . . . . Explosions 22 | . . . . . . . . 22 . . . Melee 45 | . . . . . . 43 . . . . 2 Knockbacks . | . . . . . . . . . . . . Impact . | . . . . . . . . . . . . Kinetic . | . . . . . . . . . . . . Secondary . | . . . . . . . . . . . . Self-Inflicted Damage 176 | . . . . . . 137 . . . 36 3 Shots 7 | . . . . . . 5 . . . 2 . Rammed 2 | . . . . . . . . . . . 2 Targets Rammed 2 | . . . . . . . . . . . 2 Kicked . | . . . . . . . . . . . . Crushed . | . . . . . . . . . . . . Highest Temperature 199 | . . 9 . . 161 195 . 190 199 195 156 Average Temperature 76 | . . 9 . . 72 73 . 44 103 84 51 Received Heat Transfer 702 | . . 69 . . 99 255 . 27 72 180 . Siege Activations . | . . . . . . . . . . . . Robots Corrupted . | . . . . . . . . . . . . Combat Hostiles . | . . . . . . . . . . . . Parts Fried . | . . . . . . . . . . . . Impact Corruptions . | . . . . . . . . . . . . Robots Melted . | . . . . . . . . . . . . Combat Hostiles . | . . . . . . . . . . . . Parts Melted 2 | . . . . . . 1 . . 1 . . Heat Transferred 2874 | . . . . . . 1470 . 235 540 535 94 Parts Sabotaged . | . . . . . . . . . . . . Parts Stolen . | . . . . . . . . . . . . Parts Stripped . | . . . . . . . . . . . . Power Chain Reactions . | . . . . . . . . . . . . Missiles Intercepted . | . . . . . . . . . . . . Alert | -11 -10 -10 -10 -9 -8 -8 -8 -8 -7 -7 -6 ------- Run | Scr Mat Min Exi Min Mat Gar Mat Gar Fac Low Zio Peak Influence 930 | . 161 206 . . 83 930 455 485 332 . . Initial 453 | . . 62 . . . 53 453 295 254 . . Average 267 | . 101 85 . . 14 557 453 405 261 . . Maximum Alert Level 3 | . . 1 . . . 3 2 2 1 . . Low Security (%) 55 | 100 100 92 . 100 100 16 . . 18 . . Level 1 13 | . . 7 . . . 7 . 28 81 . . Level 2 21 | . . . . . . 45 100 71 . . . Level 3 10 | . . . . . . 30 . . . . . Level 4 . | . . . . . . . . . . . . Level 5 . | . . . . . . . . . . . . High Security . | . . . . . . . . . . . . Max Security . | . . . . . . . . . . . . Squads Dispatched 8 | . 1 1 . . 1 . . . 5 . . Investigation 3 | . 1 . . . 1 . . . 1 . . Extermination 1 | . . . . . . . . . 1 . . Reinforcement 1 | . . . . . . . . . 1 . . Assault 1 | . . 1 . . . . . . . . . Garrison 2 | . . . . . . . . . 2 . . Intercept . | . . . . . . . . . . . . Searches Triggered . | . . . . . . . . . . . . Construction Impeded . | . . . . . . . . . . . . Haulers Reinforced . | . . . . . . . . . . . . Active Scanning Responses . | . . . . . . . . . . . . Cargo Convoy Interrupts . | . . . . . . . . . . . . Stealth | -11 -10 -10 -10 -9 -8 -8 -8 -8 -7 -7 -6 --------- Run | Scr Mat Min Exi Min Mat Gar Mat Gar Fac Low Zio Distress Signals 1 | . . . . . . . . . 1 . . Communications Jammed . | . . . . . . . . . . . . Distress Signals . | . . . . . . . . . . . . Times Spotted 107 | . 6 9 . 3 7 29 . 8 15 14 16 Peak Tracking Total 11 | . 3 4 . 3 3 3 . 4 7 7 11 Tactical Retreats 6 | . 1 1 . . . . . . . . 4 Traps | -11 -10 -10 -10 -9 -8 -8 -8 -8 -7 -7 -6 ------- Run | Scr Mat Min Exi Min Mat Gar Mat Gar Fac Low Zio Traps Triggered 10 | . 1 . . . 1 6 . 2 . . . Indirectly . | . . . . . . . . . . . . Trap Hack Attempts . | . . . . . . . . . . . . Triggered . | . . . . . . . . . . . . Disarmed . | . . . . . . . . . . . . Reprogrammed . | . . . . . . . . . . . . Reused . | . . . . . . . . . . . . Traps Extracted . | . . . . . . . . . . . . Installed . | . . . . . . . . . . . . Triggered . | . . . . . . . . . . . . Most Traps Carried 5 | . . . . . . . . . . 5 5 Machines | -11 -10 -10 -10 -9 -8 -8 -8 -8 -7 -7 -6 ---------- Run | Scr Mat Min Exi Min Mat Gar Mat Gar Fac Low Zio Machines Disabled 3 | . . . . . 1 1 . 1 . . . Max in Single Turn 1 | . . . . . 1 1 . 1 . . . Garrison Relay 2 | . . . . . . 1 . 1 . . . Machines Sabotaged . | . . . . . . . . . . . . Garrisons Compromised . | . . . . . . . . . . . . Overloaded Fab Kills . | . . . . . . . . . . . . Hacking | -11 -10 -10 -10 -9 -8 -8 -8 -8 -7 -7 -6 --------- Run | Scr Mat Min Exi Min Mat Gar Mat Gar Fac Low Zio Machines Accessed 13 | . 3 . 2 . 3 2 1 . 2 . . Terminals 8 | . 3 . . . 2 2 . . 1 . . Fabricators 1 | . . . . . . . . . 1 . . Repair Stations . | . . . . . . . . . . . . Recycling Units . | . . . . . . . . . . . . Scanalyzers . | . . . . . . . . . . . . Garrison Access 2 | . . . . . 1 . 1 . . . . Total Hacks 25 | . 7 . 2 . 7 5 1 . 3 . . Successful 12 | . 1 . 2 . 4 2 1 . 2 . . Failed 11 | . 5 . . . 2 3 . . 1 . . Catastrophic 2 | . . . . . . 1 . . 1 . . Database Lockouts 2 | . 1 . . . 1 . . . . . . Manual 21 | . 8 . 1 . 4 5 . . 3 . . Terminals 20 | . 7 . . . 6 5 . . 2 . . Fabricators 1 | . . . . . . . . . 1 . . Repair Stations . | . . . . . . . . . . . . Recycling Units . | . . . . . . . . . . . . Scanalyzers . | . . . . . . . . . . . . Garrison Access 2 | . . . . . 1 . 1 . . . . Terminal Hacks 7 | . 1 . 2 . 3 . . . 1 . . Record 1 | . . . 1 . . . . . . . . Robot Analysis 2 | . 1 . . . 1 . . . . . . Prototype ID Bank 1 | . . . . . 1 . . . . . . Branch Access Points 1 | . . . . . . . . . 1 . . Recall Investigation 1 | . . . . . 1 . . . . . . EX-Prototype ID Bank 1 | . . . 1 . . . . . . . . Fabricator Hacks . | . . . . . . . . . . . . Repair Station Hacks . | . . . . . . . . . . . . Recycling Unit Hacks . | . . . . . . . . . . . . Scanalyzer . | . . . . . . . . . . . . Garrison Access Hacks 2 | . . . . . 1 . 1 . . . . Unlock Access 2 | . . . . . 1 . 1 . . . . Unauthorized Hacks 3 | . . . . . . 2 . . 1 . . Terminals 2 | . . . . . . 2 . . . . . Botnet 2 | . . . . . . 2 . . . . . Fabricators 1 | . . . . . . . . . 1 . . Fabnet 1 | . . . . . . . . . 1 . . Repair Stations . | . . . . . . . . . . . . Recycling Units . | . . . . . . . . . . . . Scanalyzers . | . . . . . . . . . . . . Garrison Access . | . . . . . . . . . . . . Data Cores Recovered . | . . . . . . . . . . . . Used . | . . . . . . . . . . . . Hacking Detections 8 | . 3 . . . 2 2 . . 1 . . Full Trace Events 1 | . . . . . . . . . 1 . . Feedback Events . | . . . . . . . . . . . . Feedback Blocked . | . . . . . . . . . . . . Robot Schematics Acquired 4 | . . . . . . . . . . . 4 Robots Built . | . . . . . . . . . . . . Authchips . | . . . . . . . . . . . . Time . | . . . . . . . . . . . . Total Robot Build Rating . | . . . . . . . . . . . . Part Schematics Acquired 15 | . . . . . . . . . . . 15 Parts Built . | . . . . . . . . . . . . Authchips . | . . . . . . . . . . . . Time . | . . . . . . . . . . . . Total Part Build Rating . | . . . . . . . . . . . . Parts Repaired . | . . . . . . . . . . . . Time . | . . . . . . . . . . . . Parts Recycled . | . . . . . . . . . . . . Recycled Matter . | . . . . . . . . . . . . Retrieved Matter . | . . . . . . . . . . . . Retrieved Components . | . . . . . . . . . . . . Parts Scanalyzed . | . . . . . . . . . . . . Part Schematics Acquired . | . . . . . . . . . . . . Parts Damaged . | . . . . . . . . . . . . Bothacking | -11 -10 -10 -10 -9 -8 -8 -8 -8 -7 -7 -6 ------------ Run | Scr Mat Min Exi Min Mat Gar Mat Gar Fac Low Zio Used RIF Installer 2 | . . . . . . 1 . 1 . . . Threat Obfuscator 1 | . . . . . . . . 1 . . . Robots Hacked 4 | . . . . . . . . . 4 . . Non-combat . | . . . . . . . . . . . . Combat 4 | . . . . . . . . . 4 . . Robot Hacks Applied 4 | . . . . . . . . . 4 . . overwrite_iff 3 | . . . . . . . . . 3 . . formatsys_high 1 | . . . . . . . . . 1 . . Relay Couplers Released 17 | . . . . . . 8 . 5 4 . . Machine Destruction 9 | . . . . . . 4 . 5 . . . Programmers 8 | . . . . . . 4 . . 4 . . Attached 2 | . . . . . . . . . 2 . . Fabnet Peak Effective % 3 | . . . . . . . . . . . 3 Robots Rewired 5 | . . . . . . 3 . . . 2 . Allies Hacked . | . . . . . . . . . . . . Hacks Repelled . | . . . . . . . . . . . . Allies | -11 -10 -10 -10 -9 -8 -8 -8 -8 -7 -7 -6 -------- Run | Scr Mat Min Exi Min Mat Gar Mat Gar Fac Low Zio Total Allies 10 | . . 1 . . . 3 . . 4 2 . Largest Group 3 | . . 1 . . . 3 3 2 2 2 . Highest-Rated Group 90 | . . 31 . . . 30 30 20 90 90 . Highest-Rated Ally 90 | . . 31 . . . 10 10 10 90 90 . Total Orders . | . . . . . . . . . . . . Ally Attacks 37 | . . 7 . . . . . 5 5 20 . Total Damage 789 | . . 146 . . . . . 90 66 487 . Kills 7 | . . 2 . . . . . 2 1 2 . Allies Corrupted 1 | . . . . . . . . . . 1 . Allies Melted 1 | . . . . . . . . 1 . . . Intel | -11 -10 -10 -10 -9 -8 -8 -8 -8 -7 -7 -6 ------- Run | Scr Mat Min Exi Min Mat Gar Mat Gar Fac Low Zio Robot Analysis Total 2 | . 1 . . . 1 . . . . . . Derelict Logs Recovered 4 | . . 2 . 1 . . . . . 1 . Drone Launches . | . . . . . . . . . . . . Drone Recoveries . | . . . . . . . . . . . . Exploration | -11 -10 -10 -10 -9 -8 -8 -8 -8 -7 -7 -6 ------------- Run | Scr Mat Min Exi Min Mat Gar Mat Gar Fac Low Zio Turns Passed 7023 | 74 320 945 689 570 632 1729 69 326 491 715 463 Spaces Moved 3670 | 43 135 369 287 238 315 1053 45 195 282 440 268 Core 34 | 4 . . . . . . . . . . 30 Treads 1336 | 39 135 369 287 238 112 1 . . . 153 2 Legs . | . . . . . . . . . . . . Wheels 2300 | . . . . . 203 1052 45 195 282 287 236 Hover . | . . . . . . . . . . . . Flight . | . . . . . . . . . . . . Fastest Speed 50 | 50 160 240 240 240 115 130 130 130 130 130 50 Average Speed 163 | 149 216 240 240 240 160 130 130 130 130 140 126 Slowest Speed 750 | 160 240 240 240 240 240 400 130 130 130 160 750 Overloaded Moves . | . . . . . . . . . . . . Propulsion Burnouts . | . . . . . . . . . . . . Robots Hopped . | . . . . . . . . . . . . Cave-ins Triggered . | . . . . . . . . . . . . Exploration Rate (%) 38 | 4 28 77 69 65 25 77 10 36 7 42 20 Regions Visited 11 Branch Regions 5 Pre-discovered Areas 2 | . . 1 1 . . . . . . . . Known Exits Taken 3 | . . . . . 1 . 1 . 1 . . Unknown Exits Taken 6 | 1 1 1 1 1 . . . . . 1 . Scrap Searched 4 | . . 1 . 1 . . . . . 2 . Spaces Dug 21 | . . . . . . 7 2 2 2 8 . Terrain Destroyed 103 | . . . . . 26 22 2 2 2 49 . Melee 5 | . . . . . . 1 2 . 2 . . Projectile . | . . . . . . . . . . . . AOE 98 | . . . . . 26 21 . 2 . 49 . Terrain Rammed . | . . . . . . . . . . . . Walls Destroyed . | . . . . . . . . . . . . Machines Disabled . | . . . . . . . . . . . . Actions | -11 -10 -10 -10 -9 -8 -8 -8 -8 -7 -7 -6 --------- Run | Scr Mat Min Exi Min Mat Gar Mat Gar Fac Low Zio Total 4290 | 50 152 392 289 238 421 1260 52 248 367 495 326 Wait 188 | . 7 . . . 60 38 6 1 49 14 13 Move 3659 | 42 134 368 286 237 314 1052 44 194 281 439 268 Hop . | . . . . . . . . . . . . Pick Up 42 | 2 . . 2 1 8 15 . 6 2 6 . Fast Attach 28 | 6 1 1 . . 8 5 . 2 1 1 3 Attach 16 | . . . . . 1 4 . 2 5 2 2 Detach 13 | . 1 . . . 6 3 . . 1 2 . Swap 29 | . . . . . 4 8 . 5 4 4 4 Drop 30 | . 1 . 1 . 6 10 . 7 1 1 3 Fire 173 | . 8 23 . . 14 67 . 12 21 26 2 Melee 64 | . . . . . . 28 2 3 2 . 29 Ram 2 | . . . . . . . . . . . 2 Kick . | . . . . . . . . . . . . Crush . | . . . . . . . . . . . . Escape Stasis 46 | . . . . . . 30 . 16 . . . Rewire . | . . . . . . . . . . . . Trap . | . . . . . . . . . . . . Miscellaneous . | . . . . . . . . . . . . Route ------- -11/Scrapyard -10/Materials -10/Mines (discovered 3 exits: [*Mat x2] / *Exi) -10/Exiles -9/Mines -8/Materials (discovered 3 exits: *Fac / Sto / Gar) -8/Garrison (discovered 4 exits: *Mat x4) -8/Materials -8/Garrison -7/Factory (discovered 3 exits: [*Fac] / *Low x2) -7/Lower Caves -6/Zion (discovered 1 exit: [*Pro]) History --------- Turn | Location | Event 14 | -11/Scrapyard | Discovered new exit (range 16) 75 | -11/Scrapyard | Entered Materials 310 | -10/Materials | Build established: Mutant 352 | -10/Materials | Central database locked down 357 | -10/Materials | Discovered new exit (range 11) 395 | -10/Materials | Entered Mines 510 | -10/Mines | Assembled infested the area 616 | -10/Mines | Met a Derelict testing a Signal Generator 949 | -10/Mines | Discovered new exit (range 10) 1057 | -10/Mines | Discovered new exit (range 5) 1059 | -10/Mines | Learned location of Zion (-6) 1330 | -10/Mines | Discovered new exit (range 5) 1340 | -10/Mines | Entered Exiles 1398 | -10/Exiles | Met 8R-AWN 1439 | -10/Exiles | Met EX-HEX 1528 | -10/Exiles | Met EX-DEC 1616 | -10/Exiles | Met EX-BIN 1650 | -10/Exiles | Aligned with FarCom system 1652 | -10/Exiles | Given EX-Vault access code 1712 | -10/Exiles | Opened EX-Vault 1732 | -10/Exiles | Found Superbattery 1785 | -10/Exiles | Warned to stay clear of 0b10 Research branches 2010 | -10/Exiles | Discovered new exit (range 10) 2029 | -10/Exiles | Left Exiles lab with Superbattery 2029 | -10/Exiles | Entered Mines 2042 | -9/Mines | Met a Derelict bent on vengeance 2238 | -9/Mines | Received a Rocket Launcher from a helpful Derelict 2441 | -9/Mines | Learned Materials machine intel 2592 | -9/Mines | Discovered new exit (range 4) 2599 | -9/Mines | Entered Materials 2599 | -8/Materials | Evolved 4 slots: Propulsion x1, Utility x2, Weapon x1 2600 | -8/Materials | Identified exit to Storage 2601 | -8/Materials | Loaded intel: 60 machine locations 3017 | -8/Materials | Discovered new exit (range 11) 3109 | -8/Materials | Central database locked down 3225 | -8/Materials | Identified exit to Garrison 3231 | -8/Materials | Entered Garrison 3332 | -8/Garrison | Triggered checkpoint 3375 | -8/Garrison | Discovered new exit (range 6) 3497 | -8/Garrison | Triggered checkpoint 3514 | -8/Garrison | Triggered checkpoint 3572 | -8/Garrison | Destroyed 9 combat bots 3634 | -8/Garrison | Triggered checkpoint 3792 | -8/Garrison | Discovered new exit (range 10) 3916 | -8/Garrison | Discovered new exit (range 15) 3978 | -8/Garrison | Triggered checkpoint 3994 | -8/Garrison | Garrison Relay disabled 4160 | -8/Garrison | Triggered checkpoint 4232 | -8/Garrison | Discovered new exit (range 12) 4350 | -8/Garrison | Triggered checkpoint 4516 | -8/Garrison | Triggered checkpoint 4552 | -8/Garrison | Triggered checkpoint 4616 | -8/Garrison | Installed Relay Interface Framework 4744 | -8/Garrison | Triggered checkpoint 4911 | -8/Garrison | Build established: Bothacker-Mutant 4960 | -8/Garrison | Entered Materials 4960 | -8/Materials | Accompanied by 3 allies 5019 | -8/Materials | Identified exit to Garrison 5029 | -8/Materials | Entered Garrison 5029 | -8/Garrison | Accompanied by 2 allies 5094 | -8/Garrison | Triggered checkpoint 5102 | -8/Garrison | Triggered checkpoint 5144 | -8/Garrison | Triggered checkpoint 5198 | -8/Garrison | Triggered checkpoint 5235 | -8/Garrison | Expanded RIF knowledge: Threat Obfuscation 5270 | -8/Garrison | Discovered new exit (range 3) 5297 | -8/Garrison | Garrison Relay disabled 5355 | -8/Garrison | Entered Factory 5355 | -7/Factory | Evolved 2 slots: Propulsion x1, Utility x1 5544 | -7/Factory | Garrison activated, responded to threat 5600 | -7/Factory | Identified exit to Lower Caves 5769 | -7/Factory | Garrison activated, responded to threat 5831 | -7/Factory | Discovered new exit (range 7) 5846 | -7/Factory | Entered Lower Caves 5846 | -7/Lower Caves | Accompanied by 1 ally 5958 | -7/Lower Caves | Attracted the attention of an 0b10 outpost 6013 | -7/Lower Caves | Destroyed 7 combat bots 6393 | -7/Lower Caves | Learned Factory emergency access door positions 6517 | -7/Lower Caves | A Derelict revealed a hidden shortcut to a safe place 6561 | -7/Lower Caves | Entered Zion 6743 | -6/Zion | Found CR-A16's Pointy Stick 6770 | -6/Zion | Discovered new exit (range 15) 6872 | -6/Zion | System corruption cleaned by Quarantine Array 6877 | -6/Zion | RIF detected upon attempting to enter Zion 6877 | -6/Zion | Attacked by Zionites 6877 | -6/Zion | Spotted PU-PJP(B) 6877 | -6/Zion | Spotted IB-Q2S(B) 6937 | -6/Zion | Destroyed PU-PJP(B) 6960 | -6/Zion | Core integrity fell below 50% 6988 | -6/Zion | Core integrity fell below 20% 7024 | -6/Zion | Destroyed by YB-PVS(d) with Rocket Launcher Last Messages --------------- 06962_ 27-Q74(z) destroyed. 06964_ FX-QX1(m) repairs IB-Q2S(B). 06965_ Penetrated by Slug. 06968_ Imp. Heavy Treads destroyed. 06968_ Knocked back. 06992_ TB-D4Y(z) suffers critical hit (Destroy). 06998_ Adv. Targeting Computer destroyed. 06998_ System corrupted by crushing effect (+3). 07002_ Hcp. Storage Unit destroyed. 07002_ Graphene Brace crushed and broken. 07002_ System corrupted by crushing effect (+3). 07006_ CR-A16's Pointy Stick destroyed. 07008_ Knocked back. 07008_ Slammed into 8S-1AK(z). 07008_ Destabilizing: System interference. 07008_ Adv. Heat Sink temporarily disabled. 07009_ Slammed into TB-D4Y(z). 07009_ TB-D4Y(z) destroyed. 07020_ BM-TL0(z) pulls a Mak. Sword out of the Twisted Machinery. 07022_ System corrupted: Energy discharge (-28). Map ----- +----------------------------------------------------+ | ?????????????????????????????????????????????????? | | ?????????????????????????????????????????????????? | | ?????????????????????????????????????????????????? | | ?????????????????????????????????????????????????? | | ?????????????????????????????????????????????????? | | ?????????????????????????????????????????????????? | | ?????????????????????????????????????????????????? | | ?????????????????????????????????????????????????? | | ?????????????????????????????????????????????????? | | ?????????????????????????????????????????????????? | | ?????????????????????????????????????????????????? | | ??????????????????????????"??????????????????????? | | ?????????????????????????? ?????????????????????? | | ?????????????????????????" "?????????????????????? | | ????????????????????????"" ""????????????????????? | | ????????????????????????"" ""????????????????????? | | ????????????????????????"$ ""????????????????????? | | ???????????????????????? ""???????????????????? | | ??????????????? ??????""" "????????????????????? | | ???????????????? " ?"#"" "????????????????????? | | ????????????????? """" ""???????????????????? | | ??????????????" " """" ""????????????????????? | | ??????????????" " """ "##???????????????????? | | ??????????????? "$ """ ""#???????????????????? | | ???????????????? " d ""##???????????????????? | | ??????????????? """ @"""#???????????????????? | | ?????????????? """"""" ""##???????????????????? | | ?????????????? """"""" """##????###?###???????? | | ?????????????" "" "" """#????# ###%#???????? | | ?????????????" "" ""##????#!#%&!#???????? | | ????????????? "" """#?????#!#!&%#???????? | | ????????????? """ """""#######[%]|########## | | ????????????" """ """""##"#"##%]!!"""""""""" | | ????????????" """ """""#"#"##"%%%!%""""""""" | | ????????????" "" """""""""#*%= !% % | | ???????????? "" % % | | ???????????? "" % | | ????????????? """""""" " # | | ???????????? """"" "" ""### """"" """ | | ????????????? " "##?# """""""""" | | ????????????? " "#??# "########### | | ????????????? "" " ""??#####????????# | | ?????????????? #"" "" "#??????????????# | | ??????????????" ???"" "" "???????????????# | | ????????????????????" """ "???????????????# | | ???????????????????? ??""" "???????????????# | | ????????????????????????""""" "???????????????# | | ???????????????????????????"" ""???????????????# | | ????????????????????????????" ""???????????????# | | ????????????????????????????? ?????????????????# | +----------------------------------------------------+ Best States ------------- Heat Dissipation 59 Coolant Potential 65 Energy Generation 25 Energy Capacity 250 Matter Stores 300 Matter Capacity 300 Sight Range 20 Terrain Scan Density 10 Armor Coverage 300 Evasion (%) 50 Targeting Accuracy 8 Recoil Reduction 2 Relay Coupler Types 1 Relay Coupler Value 15 Item Schematics ----------------- Mass Driver | -6/Zion | Archive Power Sword | -6/Zion | Archive Adv. Plasma Cannon | -6/Zion | Archive Enh. Optical Array | -6/Zion | Archive Adv. Hacking Suite | -6/Zion | Archive Fusion Compressor | -6/Zion | Archive Force Field | -6/Zion | Archive Mak. Terrain Scanner | -6/Zion | Archive Hardcell Cannon | -6/Zion | Archive Power Amplifier | -6/Zion | Archive Enh. Gauss Cannon | -6/Zion | Archive Adv. Signal Interpreter | -6/Zion | Archive Imp. Weapon Cycler | -6/Zion | Archive Hvy. Phase Cannon | -6/Zion | Archive Focal Shield | -6/Zion | Archive Robot Schematics ------------------ Y-72 Warden | -6/Zion | Archive T-07 Excavator | -6/Zion | Archive A-15 Conveyor | -6/Zion | Archive R-10 Processor | -6/Zion | Archive Fabricated ------------ Nothing Alien Tech Used ----------------- None Achievements -------------- None Challenges ------------ None Game ------ Seed ModifiedCompactAutogun Manual? 0 Play Time 00:40:00 Cumulative 259.3 hours Start 2022.07.20 @ 13:39:50 End 2022.07.20 @ 14:20:34 Sessions 1 Manual Loads 0 Difficulty Rogue Special Mode None Game No. 366 Rogue 279 Adventurer 87 Explorer 0 Win Type - Total 8 Types 4/0/3/1/0/0/0/0/0 Lore% 74 Gallery% 80 Achievement% 68 Wizard Run 0 Options --------- ASCII 0 Keyboard 1 Movement Numpad Keybinds 0 Fullscreen 1 Font 18/Smallcaps Map View 76x50 Tactical HUD 1 Map Filters NONE Filters NONE Steam 1 RUN: 3571b607-1fd6-43f7-8b41-094806398e81